fUSD/lending_fUSD_20240318
["ID","MTS","AMOUNT","RATE_DAILY","PERIOD"]
[319476304,1710799910232,-191.82375267,0.00023287,2]
[319476305,1710799910241,-500.0,0.00023287,2]
[319476306,1710799910251,-500.0,0.00023287,2]
[319476307,1710799910261,-500.0,0.00023287,2]
[319476308,1710799910271,-500.0,0.00023287,2]
[319476309,1710799910281,-754.65,0.00023287,2]
[319476310,1710799910290,-500.0,0.00023287,2]
[319476311,1710799910300,-500.0,0.00023287,2]
[319476312,1710799910310,-597.96024179,0.00023287,2]
[319476313,1710799910320,-1183.48,0.00023287,2]
[319476314,1710799910330,-500.0,0.00023287,2]
[319476315,1710799910341,-500.0,0.00023287,2]
[319476316,1710799910350,-500.0,0.00023287,2]
[319476317,1710799910361,-500.0,0.00023287,2]
[319476318,1710799910371,-500.0,0.00023287,2]
[319476319,1710799910381,-500.0,0.00023287,2]
[319476320,1710799910392,-500.0,0.00023287,2]
[319476321,1710799910402,-841.06,0.00023287,2]
[319476322,1710799910412,-1050.21,0.00023287,2]
[319476323,1710799910422,-603.24,0.00023287,2]
[319476324,1710799910432,-500.0,0.00023287,2]
[319476325,1710799910442,-864.95,0.00023287,2]
[319476326,1710799910452,-500.0,0.00023287,2]
[319476327,1710799910462,-801.98,0.00023287,2]
[319476328,1710799910471,-500.0,0.00023287,2]
[319476329,1710799910481,-2023.13,0.00023287,2]
[319476330,1710799910492,-500.0,0.00023287,2]
[319476331,1710799910502,-794.11,0.00023287,2]
[319476332,1710799910512,-500.0,0.00023287,2]
[319476333,1710799910522,-2257.25,0.00023287,2]
[319476334,1710799910532,-1080.91,0.00023287,2]
[319476335,1710799910542,-753.34,0.00023287,2]
[319476336,1710799910552,-500.0,0.00023287,2]
[319476337,1710799910562,-841.73,0.00023287,2]
[319476338,1710799910572,-2219.16,0.00023287,2]
[319476339,1710799910583,-637.28,0.00023287,2]
[319476340,1710799910592,-500.0,0.00023287,2]
[319476341,1710799910602,-822.95,0.00023287,2]
[319476342,1710799910612,-532.03,0.00023287,2]
[319476343,1710799910623,-500.0,0.00023287,2]
[319476344,1710799910632,-500.0,0.00023287,2]
[319476345,1710799910643,-500.0,0.00023287,2]
[319476346,1710799910653,-500.0,0.00023287,2]
[319476347,1710799910665,-666.77,0.00023287,2]
[319476348,1710799910675,-500.0,0.00023287,2]
[319476349,1710799910684,-218.99807191,0.00023287,2]
[319476350,1710799910695,-500.0,0.00023287,2]
[319476351,1710799910705,-2410.75,0.00023287,2]
[319476352,1710799910714,-500.0,0.00023287,2]
[319476353,1710799910724,-1083.62,0.00023287,2]
[319476354,1710799910733,-1096.76,0.00023287,2]
[319476355,1710799910743,-1153.52,0.00023287,2]
[319476356,1710799910754,-500.0,0.00023287,2]
[319476357,1710799910763,-500.0,0.00023287,2]
[319476358,1710799910772,-500.0,0.00023287,2]
[319476359,1710799910782,-1579.95,0.00023287,2]
[319476360,1710799910792,-1079.02,0.00023287,2]
[319476361,1710799910802,-500.0,0.00023287,2]
[319476362,1710799910812,-500.0,0.00023287,2]
[319476363,1710799910821,-500.0,0.00023287,2]
[319476364,1710799910830,-500.0,0.00023287,2]
[319476365,1710799910840,-500.0,0.00023287,2]
[319476366,1710799910850,-604.92,0.00023287,2]
[319476367,1710799910859,-2112.17,0.00023287,2]
[319476368,1710799910869,-788.06,0.00023287,2]
[319476369,1710799910879,-965.6,0.00023287,2]
[319476370,1710799910889,-348.8985821,0.00023287,2]
[319476371,1710799910899,-567.24,0.00023287,2]
[319476372,1710799910908,-1057.53,0.00023287,2]
[319476373,1710799910917,-500.0,0.00023287,2]
[319476374,1710799910927,-1346.77,0.00023287,2]
[319476375,1710799910937,-712.98,0.00023287,2]
[319476376,1710799910946,-624.81,0.00023287,2]
[319476377,1710799910956,-1820.6,0.00023287,2]
[319476378,1710799910965,-500.0,0.00023287,2]
[319476379,1710799910974,-750.79,0.00023287,2]
[319476380,1710799910984,-628.64,0.00023287,2]
[319476381,1710799910993,-787.89,0.00023287,2]
[319476382,1710799911002,-593.51,0.00023287,2]
[319476383,1710799911012,-750.42,0.00023287,2]
[319476384,1710799911021,-622.98,0.00023287,2]
[319476385,1710799911031,-500.0,0.00023287,2]
[319476386,1710799911040,-1628.79,0.00023287,2]
[319476387,1710799911054,-500.0,0.00023287,2]
[319476388,1710799911064,-837.33,0.00023287,2]
[319476389,1710799911075,-830.73,0.00023287,2]
[319476390,1710799911085,-3414.73,0.00023287,2]
[319476391,1710799911095,-500.0,0.00023287,2]
[319476392,1710799911106,-1594.83,0.00023287,2]
[319476393,1710799911117,-1565.76,0.00023287,2]
[319476394,1710799911127,-500.0,0.00023287,2]
[319476395,1710799911137,-500.0,0.00023287,2]
[319476396,1710799911148,-2289.86,0.00023287,2]
[319476397,1710799911157,-500.0,0.00023287,2]
[319476398,1710799911167,-1043.46,0.00023287,2]
[319476399,1710799911177,-2327.27,0.00023287,2]
[319476400,1710799911187,-1166.79,0.00023287,2]
[319476401,1710799911197,-549.91,0.00023287,2]
[319476402,1710799911207,-568.66,0.00023287,2]
[319476403,1710799911217,-222.53929794,0.00023287,2]
[319476404,1710799911228,-771.19,0.00023287,2]
[319476405,1710799911238,-2753.66,0.00023287,2]
[319476406,1710799911248,-1513.08,0.00023287,2]
[319476407,1710799911259,-1842.48,0.00023287,2]
[319476408,1710799911269,-500.0,0.00023287,2]
[319476409,1710799911279,-500.0,0.00023287,2]
[319476410,1710799911289,-500.0,0.00023287,2]
[319476411,1710799911299,-1460.74,0.00023287,2]
[319476412,1710799911309,-895.46,0.00023287,2]
[319476413,1710799911318,-500.0,0.00023287,2]
[319476414,1710799911328,-942.07,0.00023287,2]
[319476415,1710799911339,-1989.79,0.00023287,2]
[319476416,1710799911349,-500.0,0.00023287,2]
[319476417,1710799911359,-1990.34,0.00023287,2]
[319476418,1710799911370,-500.0,0.00023287,2]
[319476419,1710799911380,-570.11,0.00023287,2]
[319476420,1710799911390,-594.54,0.00023287,2]
[319476421,1710799911401,-501.48037679,0.00023287,2]
[319476422,1710799911411,-500.0,0.00023287,2]
[319476423,1710799911421,-500.0,0.00023287,2]
[319476424,1710799911431,-500.0,0.00023287,2]
[319476425,1710799911441,-2010.18,0.00023287,2]
[319476426,1710799911451,-500.0,0.00023287,2]
[319476427,1710799911461,-500.0,0.00023287,2]
[319476428,1710799911472,-500.0,0.00023287,2]
[319476429,1710799911483,-500.0,0.00023287,2]
[319476430,1710799911494,-500.0,0.00023287,2]
[319476431,1710799911504,-1089.38,0.00023287,2]
[319476432,1710799911514,-1225.65,0.00023287,2]
[319476433,1710799911524,-2976.15,0.00023287,2]
[319476434,1710799911534,-705.19,0.00023287,2]
[319476435,1710799911544,-508.99,0.00023287,2]
[319476436,1710799911553,-500.0,0.00023287,2]
[319476437,1710799911563,-501.15,0.00023287,2]
[319476438,1710799911574,-1173.9,0.00023287,2]
[319476439,1710799911588,-500.0,0.00023287,2]
[319476440,1710799911598,-1787.1,0.00023287,2]
[319476441,1710799911609,-500.0,0.00023287,2]
[319476442,1710799911618,-500.0,0.00023287,2]
[319476443,1710799911630,-1969.89,0.00023287,2]
[319476444,1710799911640,-551.56,0.00023287,2]
[319476445,1710799911650,-500.0,0.00023287,2]
[319476446,1710799911660,-500.0,0.00023287,2]
[319476447,1710799911670,-634.39,0.00023287,2]
[319476448,1710799911680,-515.85,0.00023287,2]
[319476449,1710799911690,-1763.14,0.00023287,2]
[319476450,1710799911700,-500.0,0.00023287,2]
[319476451,1710799911709,-1610.23,0.00023287,2]
[319476452,1710799911720,-500.0,0.00023287,2]
[319476453,1710799911730,-698.44,0.00023287,2]
[319476454,1710799911740,-757.78,0.00023287,2]
[319476455,1710799911751,-500.0,0.00023287,2]
[319476456,1710799911761,-500.0,0.00023287,2]
[319476457,1710799911772,-500.0,0.00023287,2]
[319476458,1710799911781,-500.0,0.00023287,2]
[319476459,1710799911791,-3621.53,0.00023287,2]
[319476460,1710799911800,-500.0,0.00023287,2]
[319476461,1710799911810,-1107.01,0.00023287,2]
[319476462,1710799911819,-3272.98,0.00023287,2]
[319476463,1710799911829,-500.0,0.00023287,2]
[319476464,1710799911840,-500.0,0.00023287,2]
[319476465,1710799911849,-617.42,0.00023287,2]
[319476466,1710799911859,-500.0,0.00023287,2]
[319476467,1710799911869,-833.03,0.00023287,2]
[319476468,1710799911879,-1059.1,0.00023287,2]
[319476469,1710799911888,-500.0,0.00023287,2]
[319476470,1710799911898,-2995.13,0.00023287,2]
[319476471,1710799911907,-500.0,0.00023287,2]
[319476472,1710799911917,-500.0,0.00023287,2]
[319476473,1710799911926,-1379.17,0.00023287,2]
[319476474,1710799911936,-500.0,0.00023287,2]
[319476475,1710799911945,-2205.14,0.00023287,2]
[319476476,1710799911955,-1296.97,0.00023287,2]
[319476477,1710799911964,-684.91,0.00023287,2]
[319476478,1710799911974,-500.0,0.00023287,2]
[319476479,1710799911983,-500.0,0.00023287,2]
[319476480,1710799911992,-500.0,0.00023287,2]
[319476481,1710799912002,-1167.23,0.00023287,2]
[319476482,1710799912011,-500.0,0.00023287,2]
[319476483,1710799912020,-500.0,0.00023287,2]
[319476484,1710799912030,-1111.67,0.00023287,2]
[319476485,1710799912039,-500.0,0.00023287,2]
[319476486,1710799912049,-1840.74,0.00023287,2]
[319476487,1710799912058,-1159.15,0.00023287,2]
[319476488,1710799912068,-500.0,0.00023287,2]
[319476489,1710799912078,-500.0,0.00023287,2]
[319476490,1710799912087,-1071.26,0.00023287,2]
[319476491,1710799912097,-732.2,0.00023287,2]
[319476492,1710799912106,-2487.12,0.00023287,2]
[319476493,1710799912119,-500.0,0.00023287,2]
[319476494,1710799912128,-1409.81,0.00023287,2]
[319476495,1710799912138,-277.77620105,0.00023287,2]
[319476496,1710799912150,-2258.29,0.00023287,2]
[319476497,1710799912159,-500.0,0.00023287,2]
[319476498,1710799912169,-885.61,0.00023287,2]
[319476499,1710799912178,-500.0,0.00023287,2]
[319476500,1710799912187,-728.7,0.00023287,2]
[319476501,1710799912196,-500.0,0.00023287,2]
[319476502,1710799912360,-500.0,0.00023287,2]
[319476503,1710799912370,-981.29,0.00023287,2]
[319476504,1710799912379,-619.02,0.00023287,2]
[319476505,1710799912388,-3027.38,0.00023287,2]
[319476506,1710799912399,-500.0,0.00023287,2]
[319476507,1710799912410,-2230.77,0.00023287,2]
[319476508,1710799912419,-2148.85,0.00023287,2]
[319476509,1710799912428,-847.31,0.00023287,2]
[319476510,1710799912437,-500.0,0.00023287,2]
[319476511,1710799912447,-500.0,0.00023287,2]
[319476512,1710799912456,-500.0,0.00023287,2]
[319476513,1710799912465,-500.0,0.00023287,2]
[319476514,1710799912475,-500.0,0.00023287,2]
[319476515,1710799912484,-1040.92,0.00023287,2]
[319476516,1710799912494,-1016.05,0.00023287,2]
[319476517,1710799912503,-500.0,0.00023287,2]
[319476518,1710799912513,-625.78,0.00023287,2]
[319476519,1710799912522,-557.93927579,0.00023287,2]
[319476520,1710799912532,-250.27188149,0.00023287,2]
[319476521,1710799912541,-1988.29,0.00023287,2]
[319476522,1710799912550,-673.87,0.00023287,2]
[319476523,1710799912560,-500.0,0.00023287,2]
[319476524,1710799912572,-803.43,0.00023287,2]
[319476525,1710799912583,-2712.0,0.00023287,2]
[319476526,1710799912592,-618.27,0.00023287,2]
[319476527,1710799912602,-925.33,0.00023287,2]
[319476528,1710799912612,-1492.36,0.00023287,2]
[319476529,1710799912622,-1934.24,0.00023287,2]
[319476530,1710799912631,-500.0,0.00023287,2]
[319476531,1710799912643,-1347.96,0.00023287,2]
[319476532,1710799912655,-500.0,0.00023287,2]
[319476533,1710799912666,-500.0,0.00023287,2]
[319476534,1710799912675,-618.35,0.00023287,2]
[319476535,1710799912685,-500.0,0.00023287,2]
[319476536,1710799912695,-500.0,0.00023287,2]
[319476537,1710799912704,-736.87,0.00023287,2]
[319476538,1710799912714,-3249.34,0.00023287,2]
[319476539,1710799912723,-543.11970632,0.00023287,2]
[319476540,1710799912732,-500.0,0.00023287,2]
[319476541,1710799912742,-1048.99,0.00023287,2]
[319476542,1710799912751,-500.0,0.00023287,2]
[319476543,1710799912760,-555.58,0.00023287,2]
[319476544,1710799912769,-695.99,0.00023287,2]
[319476545,1710799912779,-500.0,0.00023287,2]
[319476546,1710799912788,-500.0,0.00023287,2]
[319476547,1710799912797,-500.0,0.00023287,2]
[319476548,1710799912806,-1686.42,0.00023287,2]
[319476549,1710799912815,-500.0,0.00023287,2]
[319476550,1710799912824,-500.0,0.00023287,2]
[319476551,1710799912834,-500.0,0.00023287,2]
[319476552,1710799912842,-2027.85,0.00023287,2]
[319476553,1710799912852,-3300.65,0.00023287,2]
[319476554,1710799912861,-1879.8,0.00023287,2]
[319476555,1710799912870,-689.62,0.00023287,2]
[319476556,1710799912879,-600.13,0.00023287,2]
[319476557,1710799912890,-3602.93,0.00023287,2]
[319476558,1710799912899,-500.0,0.00023287,2]
[319476559,1710799912909,-500.0,0.00023287,2]
[319476560,1710799912918,-500.0,0.00023287,2]
[319476561,1710799912927,-839.53,0.00023287,2]
[319476562,1710799912936,-500.0,0.00023287,2]
[319476563,1710799912945,-734.91,0.00023287,2]
[319476564,1710799912954,-1753.56,0.00023287,2]
[319476565,1710799912963,-500.0,0.00023287,2]
[319476566,1710799912972,-839.74,0.00023287,2]
[319476567,1710799912981,-500.0,0.00023287,2]
[319476568,1710799912990,-500.0,0.00023287,2]
[319476569,1710799912999,-500.0,0.00023287,2]
[319476570,1710799913008,-4941.23,0.00023287,2]
[319476571,1710799913017,-489.97549994,0.00023287,2]
[319476572,1710799913027,-924.55,0.00023287,2]
[319476573,1710799913036,-646.58,0.00023287,2]
[319476574,1710799913045,-1444.11,0.00023287,2]
[319476575,1710799913054,-1862.07,0.00023287,2]
[319476576,1710799913063,-2596.77,0.00023287,2]
[319476577,1710799913072,-600.66,0.00023287,2]
[319476578,1710799913081,-1913.61,0.00023287,2]
[319476579,1710799913090,-1169.17,0.00023287,2]
[319476580,1710799913099,-501.0,0.00023287,2]
[319476581,1710799913108,-500.0,0.00023287,2]
[319476582,1710799913117,-531.01652836,0.00023287,2]
[319476583,1710799913125,-671.74,0.00023287,2]
[319476584,1710799913135,-500.0,0.00023287,2]
[319476585,1710799913150,-500.0,0.00023287,2]
[319476586,1710799913159,-500.0,0.00023287,2]
[319476587,1710799913168,-660.79,0.00023287,2]
[319476588,1710799913177,-4429.56,0.00023287,2]
[319476589,1710799913186,-500.0,0.00023287,2]
[319476590,1710799913195,-645.13,0.00023287,2]
[319476591,1710799913204,-1387.34,0.00023287,2]
[319476592,1710799913213,-500.0,0.00023287,2]
[319476593,1710799913223,-500.0,0.00023287,2]
[319476594,1710799913232,-1092.65,0.00023287,2]
[319476595,1710799913242,-1234.18,0.00023287,2]
[319476596,1710799913251,-775.21,0.00023287,2]
[319476597,1710799913260,-660.8,0.00023287,2]
[319476598,1710799913270,-1640.92,0.00023287,2]
[319476599,1710799913280,-500.0,0.00023287,2]
[319476600,1710799913289,-618.02,0.00023287,2]
[319476601,1710799913298,-500.0,0.00023287,2]
[319476602,1710799913308,-500.0,0.00023287,2]
[319476603,1710799913317,-2991.4,0.00023287,2]
[319476604,1710799913326,-526.67,0.00023287,2]
[319476605,1710799913336,-520.66,0.00023287,2]
[319476606,1710799913345,-500.0,0.00023287,2]
[319476607,1710799913354,-3432.69,0.00023287,2]
[319476608,1710799913363,-929.21,0.00023287,2]
[319476609,1710799913373,-501.84819195,0.00023287,2]
[319476610,1710799913382,-2512.6,0.00023287,2]
[319476611,1710799913393,-500.0,0.00023287,2]
[319476612,1710799913402,-553.17,0.00023287,2]
[319476613,1710799913412,-632.91,0.00023287,2]
[319476614,1710799913421,-586.86847148,0.00023287,2]
[319476615,1710799913431,-587.03,0.00023287,2]
[319476616,1710799913441,-222.82755354,0.00023287,2]
[319476617,1710799913450,-500.0,0.00023287,2]
[319476618,1710799913460,-500.0,0.00023287,2]
[319476619,1710799913469,-1670.28,0.00023287,2]
[319476620,1710799913479,-778.13,0.00023287,2]
[319476621,1710799913488,-1508.72,0.00023287,2]
[319476622,1710799913497,-588.94,0.00023287,2]
[319476623,1710799913507,-500.0,0.00023287,2]
[319476624,1710799913516,-992.88,0.00023287,2]
[319476625,1710799913525,-2672.81,0.00023287,2]
[319476626,1710799913535,-1421.34,0.00023287,2]
[319476627,1710799913544,-1479.34,0.00023287,2]
[319476628,1710799913554,-1591.7,0.00023287,2]
[319476629,1710799913563,-500.0,0.00023287,2]
[319476630,1710799913573,-549.69,0.00023287,2]
[319476631,1710799913587,-500.0,0.00023287,2]
[319476632,1710799913596,-1096.72,0.00023287,2]
[319476633,1710799913606,-500.0,0.00023287,2]
[319476634,1710799913616,-2210.21,0.00023287,2]
[319476635,1710799913626,-1855.24,0.00023287,2]
[319476636,1710799913636,-869.7,0.00023287,2]
[319476637,1710799913647,-500.0,0.00023287,2]
[319476638,1710799913657,-1181.58,0.00023287,2]
[319476639,1710799913666,-1747.53,0.00023287,2]
[319476640,1710799913676,-680.92,0.00023287,2]
[319476641,1710799913686,-500.0,0.00023287,2]
[319476642,1710799913696,-417.585999,0.00023287,7]
[319476643,1710799913706,-417.585999,0.00023287,7]
[319476644,1710799913715,-665.42,0.00023287,2]
[319476645,1710799913725,-500.0,0.00023287,2]
[319476646,1710799913734,-181.82142643,0.00023287,2]
[319476647,1710799913743,-417.585999,0.00023287,7]
[319476648,1710799913753,-1501.92,0.00023287,2]
[319476649,1710799913764,-417.585999,0.00023287,7]
[319476650,1710799913773,-2323.42,0.00023287,2]
[319476651,1710799913782,-2355.45,0.00023287,2]
[319476652,1710799913792,-2348.13,0.00023287,2]
[319476653,1710799913801,-1841.43,0.00023287,2]
[319476654,1710799913809,-648.83753409,0.00023287,2]
[319476655,1710799913819,-500.0,0.00023287,2]
[319476656,1710799913827,-633.95,0.00023287,2]
[319476657,1710799913836,-2789.32,0.00023287,2]
[319476658,1710799913845,-1047.26,0.00023287,2]
[319476659,1710799913854,-500.0,0.00023287,2]
[319476660,1710799913863,-500.0,0.00023287,2]
[319476661,1710799913872,-500.0,0.00023287,2]
[319476662,1710799913881,-506.7,0.00023287,2]
[319476663,1710799913890,-526.35188712,0.00023287,2]
[319476664,1710799913900,-2028.96,0.00023287,2]
[319476665,1710799913909,-727.29,0.00023287,2]
[319476666,1710799913919,-500.0,0.00023287,2]
[319476667,1710799913928,-1121.74,0.00023287,2]
[319476668,1710799913937,-499.012743,0.00023287,7]
[319476669,1710799913946,-500.0,0.00023287,2]
[319476670,1710799913955,-499.012743,0.00023287,7]
[319476671,1710799913965,-500.0,0.00023287,2]
[319476672,1710799913974,-499.012743,0.00023287,7]
[319476673,1710799913983,-1964.52,0.00023287,2]
[319476674,1710799913992,-500.0,0.00023287,2]
[319476675,1710799914001,-499.012743,0.00023287,7]
[319476676,1710799914009,-800.57,0.00023287,2]
[319476677,1710799914019,-151.0,0.00023287,7]
[319476678,1710799914028,-151.0,0.00023287,7]
[319476679,1710799914038,-855.83,0.00023287,2]
[319476680,1710799914047,-500.0,0.00023287,2]
[319476681,1710799914056,-156.01075144,0.00023287,2]
[319476682,1710799914065,-515.18,0.00023287,2]
[319476683,1710799914075,-151.0,0.00023287,7]
[319476684,1710799914084,-183.828599,0.00023287,7]
[319476685,1710799914093,-805.44,0.00023287,2]
[319476686,1710799914102,-1465.25,0.00023287,2]
[319476687,1710799914112,-500.0,0.00023287,2]
[319476688,1710799914121,-703.59,0.00023287,2]
[319476689,1710799914131,-1137.55,0.00023287,2]
[319476690,1710799914140,-1372.51,0.00023287,2]
[319476691,1710799914151,-500.0,0.00023287,2]
[319476692,1710799914160,-1311.42,0.00023287,2]
[319476693,1710799914169,-693.23,0.00023287,2]
[319476694,1710799914180,-890.31,0.00023287,2]
[319476695,1710799914189,-606.63,0.00023287,2]
[319476696,1710799914198,-1355.8,0.00023287,2]
[319476697,1710799914208,-633.23,0.00023287,2]
[319476698,1710799914219,-485.29012211,0.00023287,2]
[319476699,1710799914228,-931.19,0.00023287,2]
[319476700,1710799914237,-1311.22,0.00023287,2]
[319476701,1710799914247,-500.0,0.00023287,2]
[319476702,1710799914256,-931.2,0.00023287,2]
[319476703,1710799914266,-313.93220286,0.00023287,2]
[319476704,1710799914276,-500.0,0.00023287,2]
[319476705,1710799914285,-560.88,0.00023287,2]
[319476706,1710799914295,-578.22,0.00023287,2]
[319476707,1710799914305,-1373.23,0.00023287,2]
[319476708,1710799914315,-1189.08,0.00023287,2]
[319476709,1710799914324,-582.88,0.00023287,2]
[319476710,1710799914333,-500.0,0.00023287,2]
[319476711,1710799914343,-807.67,0.00023287,2]
[319476712,1710799914353,-500.0,0.00023287,2]
[319476713,1710799914362,-500.0,0.00023287,2]
[319476714,1710799914372,-500.0,0.00023287,2]
[319476715,1710799914381,-500.0,0.00023287,2]
[319476716,1710799914391,-667.48,0.00023287,2]
[319476717,1710799914400,-1318.07,0.00023287,2]
[319476718,1710799914409,-2537.59,0.00023287,2]
[319476719,1710799914419,-1833.13,0.00023287,2]
[319476720,1710799914428,-500.0,0.00023287,2]
[319476721,1710799914437,-500.0,0.00023287,2]
[319476722,1710799914447,-584.63,0.00023287,2]
[319476723,1710799914456,-922.71,0.00023287,2]
[319476724,1710799914465,-522.08,0.00023287,2]
[319476725,1710799914474,-1186.68,0.00023287,2]
[319476726,1710799914484,-500.0,0.00023287,2]
[319476727,1710799914493,-500.0,0.00023287,2]
[319476728,1710799914502,-797.09,0.00023287,2]
[319476729,1710799914511,-1847.99,0.00023287,2]
[319476730,1710799914521,-998.55,0.00023287,2]
[319476731,1710799914530,-500.0,0.00023287,2]
[319476732,1710799914539,-172.732054,0.00023287,7]
[319476733,1710799914549,-172.732054,0.00023287,7]
[319476734,1710799914559,-500.0,0.00023287,2]
[319476735,1710799914570,-500.0,0.00023287,2]
[319476736,1710799914582,-500.0,0.00023287,2]
[319476737,1710799914592,-172.732054,0.00023287,7]
[319476738,1710799914602,-172.732054,0.00023287,7]
[319476739,1710799914612,-1079.26,0.00023287,2]
[319476740,1710799914621,-1856.02,0.00023287,2]
[319476741,1710799914630,-1418.3,0.00023287,2]
[319476742,1710799914640,-1186.25,0.00023287,2]
[319476743,1710799914652,-897.94,0.00023287,2]
[319476744,1710799914663,-844.5,0.00023287,2]
[319476745,1710799914672,-500.0,0.00023287,2]
[319476746,1710799914682,-1228.33,0.00023287,2]
[319476747,1710799914691,-500.0,0.00023287,2]
[319476748,1710799914700,-656.86,0.00023287,2]
[319476749,1710799914710,-1254.05,0.00023287,2]
[319476750,1710799914719,-1220.28,0.00023287,2]
[319476751,1710799914728,-151.0,0.00023287,7]
[319476752,1710799914737,-500.0,0.00023287,2]
[319476753,1710799914746,-524.26,0.00023287,2]
[319476754,1710799914756,-151.0,0.00023287,7]
[319476755,1710799914765,-544.86,0.00023287,2]
[319476756,1710799914775,-1112.38,0.00023287,2]
[319476757,1710799914785,-1554.62,0.00023287,2]
[319476758,1710799914793,-500.0,0.00023287,2]
[319476759,1710799914803,-1046.24,0.00023287,2]
[319476760,1710799914813,-990.25,0.00023287,2]
[319476761,1710799914822,-500.0,0.00023287,2]
[319476762,1710799914832,-525.88,0.00023287,2]
[319476763,1710799914842,-615.98,0.00023287,2]
[319476764,1710799914851,-1017.43,0.00023287,2]
[319476765,1710799914861,-500.0,0.00023287,2]
[319476766,1710799914871,-500.0,0.00023287,2]
[319476767,1710799914880,-1155.33,0.00023287,2]
[319476768,1710799914890,-3244.32,0.00023287,2]
[319476769,1710799914901,-527.83,0.00023287,2]
[319476770,1710799914911,-500.0,0.00023287,2]
[319476771,1710799914920,-1754.86,0.00023287,2]
[319476772,1710799914931,-1859.5,0.00023287,2]
[319476773,1710799914941,-721.17,0.00023287,2]
[319476774,1710799914952,-1204.75,0.00023287,2]
[319476775,1710799914962,-1304.47,0.00023287,2]
[319476776,1710799914973,-500.0,0.00023287,2]
[319476777,1710799914983,-1387.32,0.00023287,2]
[319476778,1710799914993,-1084.75,0.00023287,2]
[319476779,1710799915003,-984.35,0.00023287,2]
[319476780,1710799915014,-500.0,0.00023287,2]
[319476781,1710799915023,-500.0,0.00023287,2]
[319476782,1710799915034,-500.0,0.00023287,2]
[319476783,1710799915043,-500.0,0.00023287,2]
[319476784,1710799915053,-500.0,0.00023287,2]
[319476785,1710799915063,-1042.11,0.00023287,2]
[319476786,1710799915072,-550.03,0.00023287,2]
[319476787,1710799915082,-500.0,0.00023287,2]
[319476788,1710799915092,-500.0,0.00023287,2]
[319476789,1710799915102,-500.0,0.00023287,2]
[319476790,1710799915112,-3263.23,0.00023287,2]
[319476791,1710799915122,-1980.05,0.00023287,2]
[319476792,1710799915131,-1006.81,0.00023287,2]
[319476793,1710799915141,-1334.24,0.00023287,2]
[319476794,1710799915153,-500.0,0.00023287,2]
[319476795,1710799915163,-500.0,0.00023287,2]
[319476796,1710799915173,-879.01,0.00023287,2]
[319476797,1710799915182,-505.10343273,0.00023287,2]
[319476798,1710799915192,-577.06,0.00023287,2]
[319476799,1710799915201,-772.45,0.00023287,2]
[319476800,1710799915211,-1289.15,0.00023287,2]
[319476801,1710799915221,-500.0,0.00023287,2]
[319476802,1710799915230,-500.0,0.00023287,2]
[319476803,1710799915240,-500.0,0.00023287,2]